Workbook

Sheet Κόστος ανακαίνισης μπάνιου
B1: Φύλλο εργασίας κόστους ανακαίνισης μπάνιου
B2: ΣΗΜΕΙΩΣΗ: Οι στήλες διαφοράς στον πίνακα θα δείξουν αν τα πραγματικά ποσά ξεπέρασαν τα εκτιμώμενα. Οι κόκκινοι αριθμοί δείχνουν υπέρβαση (αρνητικοί) και οι μαύροι δείχνουν μη υπέρβαση (θετικοί).
E3: Αναλυτικό κόστος (€) | H3: Συνολικό κόστος (€)
B4: Περιοχή | C4: Είδη | D4: Ποσότητα | E4: Εκτιμώμενο | F4: Πραγματικό | G4: Διαφορά | H4: Εκτιμώμενο | I4: Πραγματικό | J4: Διαφορά
B5: Μπάνιο/Ντους | C5: Μπανιέρα, χυτοσίδηρος, 5', απλή | D5: 1 | E5: 250.00 € | F5: =RANDBETWEEN(E5+2,E5+20) -> 259.00 € | G5: =IFERROR(ΚΟΣΤΟΣ[[#This Row],[Εκτιμώμενο]]-ΚΟΣΤΟΣ[[#This Row],[Πραγματικό]], "") -> -9.00 € | H5: =IFERROR(ΚΟΣΤΟΣ[[#This Row],[Ποσότητα]]*ΚΟΣΤΟΣ[[#This Row],[Εκτιμώμενο]], "") -> 250.00 € | I5: =IFERROR(ΚΟΣΤΟΣ[[#This Row],[Ποσότητα]]*ΚΟΣΤΟΣ[[#This Row],[Πραγματικό]], "") -> 259.00 € | J5: =IFERROR(ΚΟΣΤΟΣ[[#This Row],[Εκτιμώμενο ]]-ΚΟΣΤΟΣ[[#This Row],[Πραγματικό ]], "") -> -9.00 €
B6: Μπάνιο/Ντους | C6: Πόρτες ντους, αρθρωτές, απλές | D6: 1 | E6: 200.00 € | F6: 205.00 € | G6: =IFERROR(ΚΟΣΤΟΣ[[#This Row],[Εκτιμώμενο]]-ΚΟΣΤΟΣ[[#This Row],[Πραγματικό]], "") -> -5.00 € | H6: =IFERROR(ΚΟΣΤΟΣ[[#This Row],[Ποσότητα]]*ΚΟΣΤΟΣ[[#This Row],[Εκτιμώμενο]], "") -> 200.00 € | I6: =IFERROR(ΚΟΣΤΟΣ[[#This Row],[Ποσότητα]]*ΚΟΣΤΟΣ[[#This Row],[Πραγματικό]], "") -> 205.00 € | J6: =IFERROR(ΚΟΣΤΟΣ[[#This Row],[Εκτιμώμενο ]]-ΚΟΣΤΟΣ[[#This Row],[Πραγματικό ]], "") -> -5.00 €
B7: Μπάνιο/Ντους | C7: Τηλέφωνο ντους, απλό | D7: 1 | E7: 50.00 € | F7: 62.00 € | G7: =IFERROR(ΚΟΣΤΟΣ[[#This Row],[Εκτιμώμενο]]-ΚΟΣΤΟΣ[[#This Row],[Πραγματικό]], "") -> -12.00 € | H7: =IFERROR(ΚΟΣΤΟΣ[[#This Row],[Ποσότητα]]*ΚΟΣΤΟΣ[[#This Row],[Εκτιμώμενο]], "") -> 50.00 € | I7: =IFERROR(ΚΟΣΤΟΣ[[#This Row],[Ποσότητα]]*ΚΟΣΤΟΣ[[#This Row],[Πραγματικό]], "") -> 62.00 € | J7: =IFERROR(ΚΟΣΤΟΣ[[#This Row],[Εκτιμώμενο ]]-ΚΟΣΤΟΣ[[#This Row],[Πραγματικό ]], "") -> -12.00 €
B8: Μπάνιο/Ντους | C8: Περιμετρικά τοιχώματα μπανιέρας, απλά | D8: 1 | E8: 200.00 € | F8: 202.00 € | G8: =IFERROR(ΚΟΣΤΟΣ[[#This Row],[Εκτιμώμενο]]-ΚΟΣΤΟΣ[[#This Row],[Πραγματικό]], "") -> -2.00 € | H8: =IFERROR(ΚΟΣΤΟΣ[[#This Row],[Ποσότητα]]*ΚΟΣΤΟΣ[[#This Row],[Εκτιμώμενο]], "") -> 200.00 € | I8: =IFERROR(ΚΟΣΤΟΣ[[#This Row],[Ποσότητα]]*ΚΟΣΤΟΣ[[#This Row],[Πραγματικό]], "") -> 202.00 € | J8: =IFERROR(ΚΟΣΤΟΣ[[#This Row],[Εκτιμώμενο ]]-ΚΟΣΤΟΣ[[#This Row],[Πραγματικό ]], "") -> -2.00 €
B9: Ντουλάπια | C9: Ντουλάπι πρώτων βοηθειών 24'', πολυτελείας | D9: 1 | E9: 200.00 € | F9: 214.00 € | G9: =IFERROR(ΚΟΣΤΟΣ[[#This Row],[Εκτιμώμενο]]-ΚΟΣΤΟΣ[[#This Row],[Πραγματικό]], "") -> -14.00 € | H9: =IFERROR(ΚΟΣΤΟΣ[[#This Row],[Ποσότητα]]*ΚΟΣΤΟΣ[[#This Row],[Εκτιμώμενο]], "") -> 200.00 € | I9: =IFERROR(ΚΟΣΤΟΣ[[#This Row],[Ποσότητα]]*ΚΟΣΤΟΣ[[#This Row],[Πραγματικό]], "") -> 214.00 € | J9: =IFERROR(ΚΟΣΤΟΣ[[#This Row],[Εκτιμώμενο ]]-ΚΟΣΤΟΣ[[#This Row],[Πραγματικό ]], "") -> -14.00 €
B10: Ντουλάπια | C10: Αρθρωτό έπιπλο μπάνιου 30'', απλό | D10: 2 | E10: 100.00 € | F10: 117.00 € | G10: =IFERROR(ΚΟΣΤΟΣ[[#This Row],[Εκτιμώμενο]]-ΚΟΣΤΟΣ[[#This Row],[Πραγματικό]], "") -> -17.00 € | H10: =IFERROR(ΚΟΣΤΟΣ[[#This Row],[Ποσότητα]]*ΚΟΣΤΟΣ[[#This Row],[Εκτιμώμενο]], "") -> 200.00 € | I10: =IFERROR(ΚΟΣΤΟΣ[[#This Row],[Ποσότητα]]*ΚΟΣΤΟΣ[[#This Row],[Πραγματικό]], "") -> 234.00 € | J10: =IFERROR(ΚΟΣΤΟΣ[[#This Row],[Εκτιμώμενο ]]-ΚΟΣΤΟΣ[[#This Row],[Πραγματικό ]], "") -> -34.00 €
B11: Πάγκοι | C11: Κεραμικό πλακάκι, πολυτελείας (ποσ. σε πόδια) | D11: 5 | E11: 22.50 € | F11: 38.00 € | G11: =IFERROR(ΚΟΣΤΟΣ[[#This Row],[Εκτιμώμενο]]-ΚΟΣΤΟΣ[[#This Row],[Πραγματικό]], "") -> -15.50 € | H11: =IFERROR(ΚΟΣΤΟΣ[[#This Row],[Ποσότητα]]*ΚΟΣΤΟΣ[[#This Row],[Εκτιμώμενο]], "") -> 112.50 € | I11: =IFERROR(ΚΟΣΤΟΣ[[#This Row],[Ποσότητα]]*ΚΟΣΤΟΣ[[#This Row],[Πραγματικό]], "") -> 190.00 € | J11: =IFERROR(ΚΟΣΤΟΣ[[#This Row],[Εκτιμώμενο ]]-ΚΟΣΤΟΣ[[#This Row],[Πραγματικό ]], "") -> -77.50 €
B12: Μπαταρίες | C12: Μπαταρία, μπανιέρας, απλή | D12: 1 | E12: 90.00 € | F12: 109.00 € | G12: =IFERROR(ΚΟΣΤΟΣ[[#This Row],[Εκτιμώμενο]]-ΚΟΣΤΟΣ[[#This Row],[Πραγματικό]], "") -> -19.00 € | H12: =IFERROR(ΚΟΣΤΟΣ[[#This Row],[Ποσότητα]]*ΚΟΣΤΟΣ[[#This Row],[Εκτιμώμενο]], "") -> 90.00 € | I12: =IFERROR(ΚΟΣΤΟΣ[[#This Row],[Ποσότητα]]*ΚΟΣΤΟΣ[[#This Row],[Πραγματικό]], "") -> 109.00 € | J12: =IFERROR(ΚΟΣΤΟΣ[[#This Row],[Εκτιμώμενο ]]-ΚΟΣΤΟΣ[[#This Row],[Πραγματικό ]], "") -> -19.00 €
B13: Μπαταρίες | C13: Μπαταρία, ντους, μονή λαβή, απλή | D13: 1 | E13: 115.00 € | F13: 123.00 € | G13: =IFERROR(ΚΟΣΤΟΣ[[#This Row],[Εκτιμώμενο]]-ΚΟΣΤΟΣ[[#This Row],[Πραγματικό]], "") -> -8.00 € | H13: =IFERROR(ΚΟΣΤΟΣ[[#This Row],[Ποσότητα]]*ΚΟΣΤΟΣ[[#This Row],[Εκτιμώμενο]], "") -> 115.00 € | I13: =IFERROR(ΚΟΣΤΟΣ[[#This Row],[Ποσότητα]]*ΚΟΣΤΟΣ[[#This Row],[Πραγματικό]], "") -> 123.00 € | J13: =IFERROR(ΚΟΣΤΟΣ[[#This Row],[Εκτιμώμενο ]]-ΚΟΣΤΟΣ[[#This Row],[Πραγματικό ]], "") -> -8.00 €
B14: Μπαταρίες | C14: Μπαταρία νεροχύτη, απλή | D14: 1 | E14: 95.00 € | F14: 100.00 € | G14: =IFERROR(ΚΟΣΤΟΣ[[#This Row],[Εκτιμώμενο]]-ΚΟΣΤΟΣ[[#This Row],[Πραγματικό]], "") -> -5.00 € | H14: =IFERROR(ΚΟΣΤΟΣ[[#This Row],[Ποσότητα]]*ΚΟΣΤΟΣ[[#This Row],[Εκτιμώμενο]], "") -> 95.00 € | I14: =IFERROR(ΚΟΣΤΟΣ[[#This Row],[Ποσότητα]]*ΚΟΣΤΟΣ[[#This Row],[Πραγματικό]], "") -> 100.00 € | J14: =IFERROR(ΚΟΣΤΟΣ[[#This Row],[Εκτιμώμενο ]]-ΚΟΣΤΟΣ[[#This Row],[Πραγματικό ]], "") -> -5.00 €
B15: Δάπεδο | C15: Κεραμικό πλακάκι, απλό (ποσ. σε τετρ. πόδ.) | D15: 35 | E15: 12.00 € | F15: 25.00 € | G15: =IFERROR(ΚΟΣΤΟΣ[[#This Row],[Εκτιμώμενο]]-ΚΟΣΤΟΣ[[#This Row],[Πραγματικό]], "") -> -13.00 € | H15: =IFERROR(ΚΟΣΤΟΣ[[#This Row],[Ποσότητα]]*ΚΟΣΤΟΣ[[#This Row],[Εκτιμώμενο]], "") -> 420.00 € | I15: =IFERROR(ΚΟΣΤΟΣ[[#This Row],[Ποσότητα]]*ΚΟΣΤΟΣ[[#This Row],[Πραγματικό]], "") -> 875.00 € | J15: =IFERROR(ΚΟΣΤΟΣ[[#This Row],[Εκτιμώμενο ]]-ΚΟΣΤΟΣ[[#This Row],[Πραγματικό ]], "") -> -455.00 €
B16: Υλικό | C16: Κρεμάστρα για πετσέτες, απλή | D16: 2 | E16: 15.00 € | F16: 24.00 € | G16: =IFERROR(ΚΟΣΤΟΣ[[#This Row],[Εκτιμώμενο]]-ΚΟΣΤΟΣ[[#This Row],[Πραγματικό]], "") -> -9.00 € | H16: =IFERROR(ΚΟΣΤΟΣ[[#This Row],[Ποσότητα]]*ΚΟΣΤΟΣ[[#This Row],[Εκτιμώμενο]], "") -> 30.00 € | I16: =IFERROR(ΚΟΣΤΟΣ[[#This Row],[Ποσότητα]]*ΚΟΣΤΟΣ[[#This Row],[Πραγματικό]], "") -> 48.00 € | J16: =IFERROR(ΚΟΣΤΟΣ[[#This Row],[Εκτιμώμενο ]]-ΚΟΣΤΟΣ[[#This Row],[Πραγματικό ]], "") -> -18.00 €
B17: Υλικό | C17: Βάση χαρτιού τουαλέτας | D17: 1 | E17: 10.00 € | F17: 12.00 € | G17: =IFERROR(ΚΟΣΤΟΣ[[#This Row],[Εκτιμώμενο]]-ΚΟΣΤΟΣ[[#This Row],[Πραγματικό]], "") -> -2.00 € | H17: =IFERROR(ΚΟΣΤΟΣ[[#This Row],[Ποσότητα]]*ΚΟΣΤΟΣ[[#This Row],[Εκτιμώμενο]], "") -> 10.00 € | I17: =IFERROR(ΚΟΣΤΟΣ[[#This Row],[Ποσότητα]]*ΚΟΣΤΟΣ[[#This Row],[Πραγματικό]], "") -> 12.00 € | J17: =IFERROR(ΚΟΣΤΟΣ[[#This Row],[Εκτιμώμενο ]]-ΚΟΣΤΟΣ[[#This Row],[Πραγματικό ]], "") -> -2.00 €
B18: Φωτισμός | C18: Χωνευτά φώτα, απλά | D18: 4 | E18: 25.00 € | F18: 28.00 € | G18: =IFERROR(ΚΟΣΤΟΣ[[#This Row],[Εκτιμώμενο]]-ΚΟΣΤΟΣ[[#This Row],[Πραγματικό]], "") -> -3.00 € | H18: =IFERROR(ΚΟΣΤΟΣ[[#This Row],[Ποσότητα]]*ΚΟΣΤΟΣ[[#This Row],[Εκτιμώμενο]], "") -> 100.00 € | I18: =IFERROR(ΚΟΣΤΟΣ[[#This Row],[Ποσότητα]]*ΚΟΣΤΟΣ[[#This Row],[Πραγματικό]], "") -> 112.00 € | J18: =IFERROR(ΚΟΣΤΟΣ[[#This Row],[Εκτιμώμενο ]]-ΚΟΣΤΟΣ[[#This Row],[Πραγματικό ]], "") -> -12.00 €
B19: Νιπτήρες | C19: Λεκάνη τουαλέτας, απλή | D19: 2 | E19: 60.00 € | F19: 63.00 € | G19: =IFERROR(ΚΟΣΤΟΣ[[#This Row],[Εκτιμώμενο]]-ΚΟΣΤΟΣ[[#This Row],[Πραγματικό]], "") -> -3.00 € | H19: =IFERROR(ΚΟΣΤΟΣ[[#This Row],[Ποσότητα]]*ΚΟΣΤΟΣ[[#This Row],[Εκτιμώμενο]], "") -> 120.00 € | I19: =IFERROR(ΚΟΣΤΟΣ[[#This Row],[Ποσότητα]]*ΚΟΣΤΟΣ[[#This Row],[Πραγματικό]], "") -> 126.00 € | J19: =IFERROR(ΚΟΣΤΟΣ[[#This Row],[Εκτιμώμενο ]]-ΚΟΣΤΟΣ[[#This Row],[Πραγματικό ]], "") -> -6.00 €
B20: Άλλα | D20: 1 | E20: 20.00 € | F20: 37.00 € | G20: =IFERROR(ΚΟΣΤΟΣ[[#This Row],[Εκτιμώμενο]]-ΚΟΣΤΟΣ[[#This Row],[Πραγματικό]], "") -> -17.00 € | H20: =IFERROR(ΚΟΣΤΟΣ[[#This Row],[Ποσότητα]]*ΚΟΣΤΟΣ[[#This Row],[Εκτιμώμενο]], "") -> 20.00 € | I20: =IFERROR(ΚΟΣΤΟΣ[[#This Row],[Ποσότητα]]*ΚΟΣΤΟΣ[[#This Row],[Πραγματικό]], "") -> 37.00 € | J20: =IFERROR(ΚΟΣΤΟΣ[[#This Row],[Εκτιμώμενο ]]-ΚΟΣΤΟΣ[[#This Row],[Πραγματικό ]], "") -> -17.00 €
B21: Μερικό άθροισμα | E21: =SUBTOTAL(109,ΚΟΣΤΟΣ[Εκτιμώμενο]) -> 1,464.50 € | F21: =SUBTOTAL(109,ΚΟΣΤΟΣ[Πραγματικό]) -> 1,618.00 € | G21: =SUBTOTAL(109,ΚΟΣΤΟΣ[Διαφορά]) -> -153.50 € | H21: =SUBTOTAL(109,ΚΟΣΤΟΣ[[Εκτιμώμενο ]]) -> 2,212.50 € | I21: =SUBTOTAL(109,ΚΟΣΤΟΣ[[Πραγματικό ]]) -> 2,908.00 € | J21: =SUBTOTAL(109,ΚΟΣΤΟΣ[[Διαφορά ]]) -> -695.50 €
B22: Μη αναμενόμενες δαπάνες (προσθέστε 30% κατ' εκτίμηση) | E22: =IFERROR(ΚΟΣΤΟΣ[[#Totals],[Εκτιμώμενο]]*0.3, "") -> 439.35 € | H22: =IFERROR(ΚΟΣΤΟΣ[[#Totals],[Εκτιμώμενο ]]*0.3, "") -> 663.75 €
B23: Σύνολο κόστους | E23: =IFERROR(SUM(E21:E21), "") -> 1,464.50 € | H23: =IFERROR(SUM(ΚΟΣΤΟΣ[[#Totals],[Εκτιμώμενο ]],Υπέρβαση), "") -> 2,876.25 €
